[Event "MČR v rapid šachu družstev 2019"]
[Site "Teplice, Czech Republic"]
[Date "2019.09.15"]
[Round "1.25"]
[White "Brejnik, Gustav"]
[Black "Docekal, Jan"]
[Result "0-1"]
[TimeControl "15 min. + 5s"]
[WhiteElo "2109"]
[BlackElo "2302"]

1. d4 {[%clk 00:15:09]} c5 {[%clk 00:15:08]} {[%emt 00:00:02]} 2. d5 {[%clk
00:15:11]} {[%emt 00:00:03]} e6 {[%clk 00:15:09]} {[%emt 00:00:03]} 3. c4
{[%clk 00:15:04]} {[%emt 00:00:13]} exd5 {[%clk 00:15:12]} {[%emt 00:00:02]} 4.
cxd5 {[%clk 00:15:07]} {[%emt 00:00:02]} d6 {[%clk 00:15:15]} {[%emt 00:00:01]}
5. Nc3 {[%clk 00:15:11]} {[%emt 00:00:02]} Be7 {[%clk 00:15:19]} {[%emt
00:00:01]} 6. Nf3 {[%clk 00:15:08]} {[%emt 00:00:08]} Nf6 {[%clk 00:15:23]}
{[%emt 00:00:02]} 7. g3 {[%clk 00:15:09]} {[%emt 00:00:03]} O-O {[%clk
00:15:26]} {[%emt 00:00:02]} 8. Bg2 {[%clk 00:15:13]} Re8 {[%clk 00:15:29]}
{[%emt 00:00:02]} 9. O-O {[%clk 00:15:15]} {[%emt 00:00:03]} Bf8 {[%clk
00:15:30]} {[%emt 00:00:05]} 10. Qc2 {[%clk 00:15:02]} {[%emt 00:00:17]} Na6
{[%clk 00:15:33]} {[%emt 00:00:02]} 11. Bf4 {[%clk 00:14:49]} {[%emt 00:00:18]}
Nc7 {[%clk 00:15:24]} {[%emt 00:00:14]} 12. Qd3 {[%clk 00:11:59]} {[%emt
00:02:55]} b6 {[%clk 00:15:04]} {[%emt 00:00:25]} 13. a4 {[%clk 00:09:49]}
{[%emt 00:02:15]} Ba6 {[%clk 00:15:08]} {[%emt 00:00:02]} 14. Qc2 {[%clk
00:09:52]} Ncxd5 {[%clk 00:14:33]} {[%emt 00:00:40]} 15. Nxd5 {[%clk 00:09:44]}
{[%emt 00:00:13]} Nxd5 {[%clk 00:14:37]} {[%emt 00:00:01]} 16. Ng5 {[%clk
00:09:44]} {[%emt 00:00:05]} Nf6 {[%clk 00:14:32]} {[%emt 00:00:09]} 17. Bxa8
{[%clk 00:09:43]} {[%emt 00:00:07]} Qxa8 {[%clk 00:14:36]} {[%emt 00:00:02]} 18.
Rfe1 {[%clk 00:09:26]} {[%emt 00:00:20]} Qc6 {[%clk 00:13:37]} {[%emt
00:01:04]} 19. Rad1 {[%clk 00:08:40]} {[%emt 00:00:52]} Bb7 {[%clk 00:13:30]}
{[%emt 00:00:12]} 20. f3 {[%clk 00:07:56]} {[%emt 00:00:48]} h6 {[%clk
00:13:24]} {[%emt 00:00:12]} 21. Nh3 {[%clk 00:07:59]} {[%emt 00:00:02]} d5
{[%clk 00:13:13]} {[%emt 00:00:16]} 22. Nf2 {[%clk 00:07:38]} {[%emt 00:00:26]}
d4 {[%clk 00:12:58]} {[%emt 00:00:20]} 23. Nd3 {[%clk 00:07:19]} {[%emt
00:00:23]} Nd5 {[%clk 00:12:47]} {[%emt 00:00:16]} 24. Qc1 {[%clk 00:04:08]}
{[%emt 00:03:17]} Qf6 {[%clk 00:10:22]} {[%emt 00:02:30]} 25. Nf2 {[%clk
00:02:39]} {[%emt 00:01:34]} Bd6 {[%clk 00:08:42]} {[%emt 00:01:46]} 26. Ne4
{[%clk 00:02:02]} {[%emt 00:00:41]} Rxe4 {[%clk 00:08:46]} {[%emt 00:00:01]} 27.
fxe4 {[%clk 00:01:57]} {[%emt 00:00:10]} Nxf4 {[%clk 00:08:49]} {[%emt
00:00:02]} 28. gxf4 {[%clk 00:01:44]} {[%emt 00:00:18]} Bxf4 {[%clk 00:08:24]}
{[%emt 00:00:31]} 29. e3 {[%clk 00:01:46]} {[%emt 00:00:01]} Bxh2+ {[%clk
00:06:45]} {[%emt 00:01:44]} 30. Kxh2 {[%clk 00:01:46]} {[%emt 00:00:06]} Qf2+
{[%clk 00:06:50]} 31. Kh3 {[%clk 00:01:46]} {[%emt 00:00:05]} Bc8# {[%clk
00:06:54]} 0-1

[Event "MČR v rapid šachu družstev 2019"]
[Site "Teplice, Czech Republic"]
[Date "2019.09.15"]
[Round "1.26"]
[White "Serrano, Salvador Eduardo"]
[Black "Novacek, Jan"]
[Result "1-0"]
[TimeControl "15 min. + 5s"]
[WhiteElo "2350"]
[BlackElo "2060"]

1. d4 {[%clk 00:15:07]} {[%emt 00:00:02]} Nf6 {[%clk 00:15:08]} {[%emt
00:00:03]} 2. Nf3 {[%clk 00:15:10]} {[%emt 00:00:02]} d5 {[%clk 00:15:03]}
{[%emt 00:00:09]} 3. c4 {[%clk 00:15:13]} {[%emt 00:00:03]} c6 {[%clk
00:15:00]} {[%emt 00:00:08]} 4. Nc3 {[%clk 00:15:14]} {[%emt 00:00:04]} e6
{[%clk 00:15:00]} {[%emt 00:00:06]} 5. e3 {[%clk 00:15:04]} {[%emt 00:00:15]}
Bd6 {[%clk 00:14:58]} {[%emt 00:00:06]} 6. Bd3 {[%clk 00:15:04]} {[%emt
00:00:04]} Nbd7 {[%clk 00:14:58]} {[%emt 00:00:05]} 7. O-O {[%clk 00:15:06]}
{[%emt 00:00:03]} O-O {[%clk 00:15:00]} {[%emt 00:00:03]} 8. e4 {[%clk
00:15:08]} {[%emt 00:00:04]} dxe4 {[%clk 00:14:56]} {[%emt 00:00:09]} 9. Nxe4
{[%clk 00:15:10]} {[%emt 00:00:02]} Nxe4 {[%clk 00:14:57]} {[%emt 00:00:05]} 10.
Bxe4 {[%clk 00:15:13]} {[%emt 00:00:02]} Nf6 {[%clk 00:14:59]} {[%emt
00:00:03]} 11. Bc2 {[%clk 00:15:14]} {[%emt 00:00:04]} Qc7 {[%clk 00:14:32]}
{[%emt 00:00:32]} 12. Bg5 {[%clk 00:15:03]} {[%emt 00:00:16]} Nd7 {[%clk
00:14:19]} {[%emt 00:00:17]} 13. Qd3 {[%clk 00:14:39]} {[%emt 00:00:29]} g6
{[%clk 00:14:07]} {[%emt 00:00:18]} 14. Rfe1 {[%clk 00:14:00]} {[%emt
00:00:43]} e5 {[%clk 00:13:30]} {[%emt 00:00:43]} 15. c5 {[%clk 00:13:53]}
{[%emt 00:00:12]} Bxc5 {[%clk 00:12:28]} {[%emt 00:01:07]} 16. dxc5 {[%clk
00:13:50]} {[%emt 00:00:08]} Nxc5 {[%clk 00:12:31]} {[%emt 00:00:02]} 17. Qc3
{[%clk 00:13:45]} {[%emt 00:00:09]} Ne6 {[%clk 00:12:16]} {[%emt 00:00:20]} 18.
Bh6 {[%clk 00:13:47]} {[%emt 00:00:03]} Re8 {[%clk 00:11:27]} {[%emt 00:00:55]}
19. Qxe5 {[%clk 00:13:36]} {[%emt 00:00:16]} Qxe5 {[%clk 00:11:26]} {[%emt
00:00:06]} 20. Rxe5 {[%clk 00:13:16]} {[%emt 00:00:25]} f6 {[%clk 00:11:27]}
{[%emt 00:00:04]} 21. Re3 {[%clk 00:13:05]} {[%emt 00:00:16]} g5 {[%clk
00:11:18]} {[%emt 00:00:13]} 22. Rae1 {[%clk 00:12:49]} {[%emt 00:00:21]} Bd7
{[%clk 00:11:16]} {[%emt 00:00:07]} 23. Bb3 {[%clk 00:12:49]} {[%emt 00:00:05]}
Kf7 {[%clk 00:10:51]} {[%emt 00:00:31]} 24. Bxg5 {[%clk 00:12:43]} {[%emt
00:00:11]} 1-0

[Event "MČR v rapid šachu družstev 2019"]
[Site "Teplice, Czech Republic"]
[Date "2019.09.15"]
[Round "1.27"]
[White "Sura, Jaroslav"]
[Black "Filipi, Stepan"]
[Result "0-1"]
[TimeControl "15 min. + 5s"]
[WhiteElo "2025"]
[BlackElo "2210"]

1. e4 {[%clk 00:15:08]} {[%emt 00:00:01]} c5 {[%clk 00:15:10]} {[%emt
00:00:01]} 2. Nc3 {[%clk 00:15:08]} {[%emt 00:00:05]} e6 {[%clk 00:15:12]}
{[%emt 00:00:02]} 3. f4 {[%clk 00:15:01]} {[%emt 00:00:12]} Nc6 {[%clk
00:15:10]} {[%emt 00:00:07]} 4. Nf3 {[%clk 00:14:56]} {[%emt 00:00:10]} g6
{[%clk 00:15:12]} {[%emt 00:00:03]} 5. d4 {[%clk 00:13:14]} {[%emt 00:01:47]}
cxd4 {[%clk 00:14:06]} {[%emt 00:01:11]} 6. Nxd4 {[%clk 00:13:17]} {[%emt
00:00:01]} Nge7 {[%clk 00:14:08]} {[%emt 00:00:04]} 7. Ndb5 {[%clk 00:12:04]}
{[%emt 00:01:18]} d5 {[%clk 00:13:44]} {[%emt 00:00:29]} 8. exd5 {[%clk
00:12:08]} {[%emt 00:00:02]} exd5 {[%clk 00:13:21]} {[%emt 00:00:27]} 9. Nxd5
{[%clk 00:11:29]} {[%emt 00:00:44]} Nxd5 {[%clk 00:13:01]} {[%emt 00:00:25]} 10.
Qxd5 {[%clk 00:11:26]} {[%emt 00:00:07]} Qe7+ {[%clk 00:12:12]} {[%emt
00:00:55]} 11. Be2 {[%clk 00:10:27]} {[%emt 00:01:04]} Be6 {[%clk 00:12:16]}
{[%emt 00:00:01]} 12. Qe4 {[%clk 00:09:55]} {[%emt 00:00:37]} f5 {[%clk
00:11:14]} {[%emt 00:01:08]} 13. Qf3 {[%clk 00:08:23]} {[%emt 00:01:36]} a6
{[%clk 00:10:22]} {[%emt 00:00:58]} 14. Nc3 {[%clk 00:07:48]} {[%emt 00:00:40]}
Nd4 {[%clk 00:10:03]} {[%emt 00:00:23]} 15. Qd3 {[%clk 00:06:56]} {[%emt
00:00:57]} Rd8 {[%clk 00:10:07]} {[%emt 00:00:02]} 16. O-O {[%clk 00:06:59]}
{[%emt 00:00:01]} Nb3 {[%clk 00:09:26]} {[%emt 00:00:46]} 17. Qf3 {[%clk
00:05:53]} {[%emt 00:01:10]} Nxa1 {[%clk 00:09:17]} {[%emt 00:00:15]} 18. Bd3
{[%clk 00:05:56]} {[%emt 00:00:01]} Bg7 {[%clk 00:08:22]} {[%emt 00:01:01]} 19.
Be3 {[%clk 00:05:14]} {[%emt 00:00:47]} O-O {[%clk 00:08:00]} {[%emt 00:00:27]}
20. Rxa1 {[%clk 00:05:14]} {[%emt 00:00:05]} Rfe8 {[%clk 00:07:37]} {[%emt
00:00:29]} 21. Bb6 {[%clk 00:04:26]} {[%emt 00:00:52]} Bd4+ {[%clk 00:06:56]}
{[%emt 00:00:46]} 22. Bxd4 {[%clk 00:04:22]} {[%emt 00:00:10]} Rxd4 {[%clk
00:07:00]} 23. Re1 {[%clk 00:04:15]} {[%emt 00:00:11]} Qc5 {[%clk 00:05:37]}
{[%emt 00:01:28]} 24. Qf2 {[%clk 00:03:49]} {[%emt 00:00:31]} Bf7 {[%clk
00:04:31]} {[%emt 00:01:12]} 25. Rxe8+ {[%clk 00:03:19]} {[%emt 00:00:34]} Bxe8
{[%clk 00:04:35]} {[%emt 00:00:01]} 26. Qe3 {[%clk 00:02:40]} {[%emt 00:00:45]}
Bf7 {[%clk 00:04:02]} {[%emt 00:00:37]} 27. Kf1 {[%clk 00:02:44]} Qd6 {[%clk
00:03:43]} {[%emt 00:00:24]} 28. Ne2 {[%clk 00:02:34]} {[%emt 00:00:15]} Rd5
{[%clk 00:03:28]} {[%emt 00:00:21]} 29. Nc3 {[%clk 00:02:16]} {[%emt 00:00:22]}
Rc5 {[%clk 00:03:07]} {[%emt 00:00:26]} 30. Na4 {[%clk 00:01:35]} {[%emt
00:00:46]} Rc7 {[%clk 00:03:12]} {[%emt 00:00:01]} 31. Nc3 {[%clk 00:01:15]}
{[%emt 00:00:25]} Re7 {[%clk 00:03:13]} {[%emt 00:00:03]} 32. Qf2 {[%clk
00:01:06]} {[%emt 00:00:14]} b5 {[%clk 00:03:12]} {[%emt 00:00:07]} 33. Ne2
{[%clk 00:00:52]} {[%emt 00:00:18]} Bc4 {[%clk 00:02:38]} {[%emt 00:00:39]} 34.
Nd4 {[%clk 00:00:30]} {[%emt 00:00:27]} Bxd3+ {[%clk 00:02:37]} {[%emt
00:00:07]} 35. cxd3 {[%clk 00:00:33]} Rd7 {[%clk 00:02:32]} {[%emt 00:00:11]}
36. Nf3 {[%clk 00:00:24]} {[%emt 00:00:13]} Qxd3+ {[%clk 00:02:34]} {[%emt
00:00:02]} 37. Qe2 {[%clk 00:00:24]} {[%emt 00:00:06]} Qxe2+ {[%clk 00:02:27]}
{[%emt 00:00:13]} 38. Kxe2 {[%clk 00:00:28]} Rc7 {[%clk 00:02:26]} {[%emt
00:00:06]} 39. Kd2 {[%clk 00:00:27]} {[%emt 00:00:06]} Kg7 {[%clk 00:02:23]}
{[%emt 00:00:08]} 40. Nd4 {[%clk 00:00:14]} {[%emt 00:00:17]} Kf6 {[%clk
00:02:25]} {[%emt 00:00:03]} 41. Nf3 {[%clk 00:00:09]} {[%emt 00:00:10]} h6
{[%clk 00:02:25]} {[%emt 00:00:06]} 42. g3 {[%clk 00:00:10]} {[%emt 00:00:04]}
g5 {[%clk 00:02:28]} {[%emt 00:00:02]} 43. a3 {[%clk 00:00:13]} {[%emt
00:00:02]} gxf4 {[%clk 00:02:20]} {[%emt 00:00:13]} 44. gxf4 {[%clk 00:00:17]}
{[%emt 00:00:01]} Rc4 {[%clk 00:02:20]} {[%emt 00:00:05]} 0-1

[Event "MČR v rapid šachu družstev 2019"]
[Site "Teplice, Czech Republic"]
[Date "2019.09.15"]
[Round "1.28"]
[White "Lacina, Filip"]
[Black "Pospichal, Michael"]
[Result "1/2-1/2"]
[TimeControl "15 min. + 5s"]
[WhiteElo "2027"]
[BlackElo "1756"]

1. e4 {[%clk 00:15:01]} {[%emt 00:00:08]} c6 {[%clk 00:15:09]} {[%emt
00:00:02]} 2. d4 {[%clk 00:14:54]} {[%emt 00:00:11]} d5 {[%clk 00:15:13]} 3.
Nc3 {[%clk 00:14:56]} {[%emt 00:00:06]} dxe4 4. Nxe4 {[%clk 00:14:59]} Bf5
{[%clk 00:15:18]} 5. Ng3 {[%clk 00:15:04]} Bg6 {[%clk 00:15:22]} 6. Nf3 {[%clk
00:15:07]} {[%emt 00:00:04]} Nd7 {[%clk 00:15:24]} {[%emt 00:00:03]} 7. h4
{[%clk 00:15:10]} {[%emt 00:00:02]} h6 {[%clk 00:15:27]} {[%emt 00:00:02]} 8.
h5 {[%clk 00:15:13]} {[%emt 00:00:02]} Bh7 {[%clk 00:15:31]} {[%emt 00:00:01]}
9. Bd3 {[%clk 00:15:15]} {[%emt 00:00:03]} Bxd3 {[%clk 00:15:35]} {[%emt
00:00:01]} 10. Qxd3 {[%clk 00:15:19]} {[%emt 00:00:02]} Ngf6 {[%clk 00:15:30]}
{[%emt 00:00:09]} 11. Bd2 {[%clk 00:15:20]} {[%emt 00:00:04]} e6 {[%clk
00:15:27]} {[%emt 00:00:08]} 12. O-O-O {[%clk 00:15:21]} {[%emt 00:00:04]} Bd6
{[%clk 00:15:23]} {[%emt 00:00:09]} 13. Ne4 {[%clk 00:15:20]} {[%emt 00:00:06]}
Nxe4 14. Qxe4 {[%clk 00:15:24]} Nf6 {[%clk 00:15:28]} {[%emt 00:00:02]} 15. Qe2
{[%clk 00:15:27]} {[%emt 00:00:01]} Qc7 {[%clk 00:15:04]} {[%emt 00:00:28]} 16.
g3 {[%clk 00:14:49]} {[%emt 00:00:44]} O-O-O {[%clk 00:14:55]} {[%emt
00:00:14]} 17. Kb1 {[%clk 00:14:10]} {[%emt 00:00:44]} Rhe8 {[%clk 00:14:02]}
{[%emt 00:00:58]} 18. c4 {[%clk 00:13:14]} {[%emt 00:01:01]} Kb8 {[%clk
00:13:36]} {[%emt 00:00:31]} 19. Bc3 {[%clk 00:13:09]} {[%emt 00:00:10]} c5
{[%clk 00:07:37]} {[%emt 00:06:04]} 20. dxc5 {[%clk 00:10:29]} {[%emt
00:02:45]} Bxc5 {[%clk 00:06:52]} {[%emt 00:00:51]} 21. Be5 {[%clk 00:10:17]}
{[%emt 00:00:16]} Bd6 {[%clk 00:06:48]} {[%emt 00:00:08]} 22. Rxd6 {[%clk
00:09:21]} {[%emt 00:01:01]} Rxd6 {[%clk 00:06:19]} {[%emt 00:00:35]} 23. Rd1
{[%clk 00:07:41]} {[%emt 00:01:44]} Red8 {[%clk 00:05:43]} {[%emt 00:00:42]} 24.
Rxd6 {[%clk 00:07:44]} {[%emt 00:00:02]} Rxd6 {[%clk 00:05:42]} {[%emt
00:00:07]} 25. Bxd6 {[%clk 00:06:23]} {[%emt 00:01:25]} Qxd6 {[%clk 00:05:43]}
{[%emt 00:00:04]} 26. Ne5 {[%clk 00:06:25]} {[%emt 00:00:02]} Qe7 {[%clk
00:03:51]} {[%emt 00:01:57]} 27. f4 {[%clk 00:06:04]} {[%emt 00:00:25]} Nd7
{[%clk 00:03:31]} {[%emt 00:00:27]} 28. g4 {[%clk 00:05:35]} {[%emt 00:00:34]}
Nxe5 {[%clk 00:03:12]} {[%emt 00:00:25]} 29. Qxe5+ {[%clk 00:05:36]} {[%emt
00:00:03]} Qc7 {[%clk 00:03:04]} {[%emt 00:00:12]} 30. Kc2 {[%clk 00:04:58]}
{[%emt 00:00:43]} Kc8 {[%clk 00:02:41]} {[%emt 00:00:30]} 31. Qxc7+ {[%clk
00:04:33]} {[%emt 00:00:29]} Kxc7 {[%clk 00:02:45]} {[%emt 00:00:01]} 32. b4
{[%clk 00:04:32]} {[%emt 00:00:06]} b6 {[%clk 00:02:42]} {[%emt 00:00:09]} 33.
a4 {[%clk 00:04:32]} {[%emt 00:00:04]} Kd6 {[%clk 00:02:43]} {[%emt 00:00:03]}
34. Kd3 {[%clk 00:04:29]} {[%emt 00:00:08]} e5 {[%clk 00:00:57]} {[%emt
00:01:52]} 35. Ke4 {[%clk 00:03:18]} {[%emt 00:01:16]} exf4 {[%clk 00:00:31]}
{[%emt 00:00:32]} 36. Kxf4 {[%clk 00:03:19]} {[%emt 00:00:02]} a5 {[%clk
00:00:29]} {[%emt 00:00:08]} 37. bxa5 {[%clk 00:00:29]} {[%emt 00:02:55]} Ke5+
{[%emt 00:00:36]} 38. Ke4+ bxa5+ {[%emt 00:00:04]} 39. Kd3 {[%emt 00:00:04]}
1/2-1/2

[Event "MČR v rapid šachu družstev 2019"]
[Site "Teplice, Czech Republic"]
[Date "2019.09.15"]
[Round "2.1"]
[White "Stocek, Jiri"]
[Black "Trepka, Jan"]
[Result "1/2-1/2"]
[TimeControl "15 min. + 5s"]
[WhiteElo "2507"]
[BlackElo "2209"]

1. c4 {[%clk 00:15:07]} {[%emt 00:00:01]} c6 {[%clk 00:15:03]} {[%emt
00:00:08]} 2. Nf3 {[%clk 00:15:04]} {[%emt 00:00:06]} Nf6 {[%clk 00:15:02]}
{[%emt 00:00:07]} 3. d4 {[%clk 00:14:58]} {[%emt 00:00:11]} d5 {[%clk
00:15:00]} {[%emt 00:00:07]} 4. Qb3 {[%clk 00:14:50]} {[%emt 00:00:13]} e6
{[%clk 00:14:52]} {[%emt 00:00:12]} 5. Bg5 {[%clk 00:14:34]} {[%emt 00:00:21]}
Nbd7 {[%clk 00:14:25]} {[%emt 00:00:33]} 6. Nc3 {[%clk 00:14:33]} {[%emt
00:00:06]} Be7 {[%clk 00:14:19]} {[%emt 00:00:10]} 7. e3 {[%clk 00:14:34]}
{[%emt 00:00:05]} O-O {[%clk 00:14:06]} {[%emt 00:00:18]} 8. Be2 {[%clk
00:14:28]} {[%emt 00:00:11]} Re8 {[%clk 00:13:26]} {[%emt 00:00:45]} 9. O-O
{[%clk 00:14:16]} {[%emt 00:00:16]} a6 {[%clk 00:12:11]} {[%emt 00:01:21]} 10.
a4 {[%clk 00:14:05]} {[%emt 00:00:16]} Qb6 {[%clk 00:11:44]} {[%emt 00:00:33]}
11. Qc2 {[%clk 00:13:56]} {[%emt 00:00:13]} a5 {[%clk 00:11:22]} {[%emt
00:00:27]} 12. h3 {[%clk 00:13:09]} {[%emt 00:00:51]} h6 {[%clk 00:10:23]}
{[%emt 00:01:05]} 13. Bf4 {[%clk 00:13:11]} {[%emt 00:00:02]} Bb4 {[%clk
00:09:39]} {[%emt 00:00:50]} 14. Rac1 {[%clk 00:12:46]} {[%emt 00:00:30]} Qd8
{[%clk 00:08:46]} {[%emt 00:00:58]} 15. Rfd1 {[%clk 00:12:38]} {[%emt
00:00:13]} Qe7 {[%clk 00:08:45]} {[%emt 00:00:06]} 16. c5 {[%clk 00:12:04]}
{[%emt 00:00:39]} Bxc3 {[%clk 00:08:07]} {[%emt 00:00:44]} 17. bxc3 {[%clk
00:11:57]} {[%emt 00:00:12]} b6 {[%clk 00:07:44]} {[%emt 00:00:28]} 18. Bd6
{[%clk 00:11:27]} {[%emt 00:00:34]} Qd8 {[%clk 00:07:47]} {[%emt 00:00:01]} 19.
c4 {[%clk 00:11:25]} {[%emt 00:00:08]} Ne4 {[%clk 00:07:09]} {[%emt 00:00:44]}
20. Bd3 {[%clk 00:09:25]} {[%emt 00:02:05]} Nxd6 {[%clk 00:06:21]} {[%emt
00:00:53]} 21. cxd6 {[%clk 00:09:27]} {[%emt 00:00:02]} dxc4 {[%clk 00:06:24]}
{[%emt 00:00:02]} 22. Bxc4 {[%clk 00:08:17]} {[%emt 00:01:16]} Nf8 {[%clk
00:05:45]} {[%emt 00:00:44]} 23. Qb2 {[%clk 00:08:17]} {[%emt 00:00:04]} Qxd6
{[%clk 00:05:27]} {[%emt 00:00:22]} 24. Qxb6 {[%clk 00:08:18]} {[%emt
00:00:04]} Bd7 {[%clk 00:05:28]} {[%emt 00:00:05]} 25. Qb3 {[%clk 00:05:56]}
{[%emt 00:02:27]} Reb8 {[%clk 00:05:17]} {[%emt 00:00:16]} 26. Qc2 {[%clk
00:05:59]} {[%emt 00:00:01]} Rb4 {[%clk 00:05:02]} {[%emt 00:00:21]} 27. Ne5
{[%clk 00:05:21]} {[%emt 00:00:43]} Rab8 {[%clk 00:04:43]} {[%emt 00:00:24]} 28.
Nd3 {[%clk 00:05:20]} {[%emt 00:00:05]} R4b6 {[%clk 00:04:41]} {[%emt
00:00:07]} 29. Qc3 {[%clk 00:05:18]} {[%emt 00:00:08]} Ra8 {[%clk 00:04:19]}
{[%emt 00:00:28]} 30. Ba2 {[%clk 00:05:20]} {[%emt 00:00:02]} Qb8 {[%clk
00:03:38]} {[%emt 00:00:46]} 31. Qd2 {[%clk 00:04:49]} {[%emt 00:00:35]} Be8
{[%clk 00:03:23]} {[%emt 00:00:21]} 32. Rc5 {[%clk 00:04:37]} {[%emt 00:00:18]}
Qa7 {[%clk 00:03:27]} {[%emt 00:00:01]} 33. Rdc1 {[%clk 00:04:20]} {[%emt
00:00:21]} Nd7 {[%clk 00:03:26]} {[%emt 00:00:07]} 34. R5c2 {[%clk 00:04:11]}
{[%emt 00:00:13]} Nf6 {[%clk 00:03:01]} {[%emt 00:00:31]} 35. Ne5 {[%clk
00:04:02]} {[%emt 00:00:13]} Qb7 {[%clk 00:02:42]} {[%emt 00:00:25]} 36. Nc4
{[%clk 00:02:45]} {[%emt 00:01:21]} Rb4 {[%clk 00:02:44]} {[%emt 00:00:03]} 37.
Nd6 {[%clk 00:02:29]} {[%emt 00:00:21]} Qe7 {[%clk 00:02:32]} {[%emt 00:00:17]}
38. Nxe8 {[%clk 00:02:18]} {[%emt 00:00:16]} Qxe8 {[%clk 00:02:36]} {[%emt
00:00:01]} 39. Rxc6 {[%clk 00:02:04]} {[%emt 00:00:19]} Rxa4 {[%clk 00:02:27]}
{[%emt 00:00:14]} 40. Bb1 {[%clk 00:02:02]} {[%emt 00:00:06]} Rb4 {[%clk
00:02:09]} {[%emt 00:00:23]} 41. Bd3 {[%clk 00:01:42]} {[%emt 00:00:25]} Rbb8
{[%clk 00:02:01]} {[%emt 00:00:13]} 42. e4 {[%clk 00:01:39]} {[%emt 00:00:08]}
Qd8 {[%clk 00:01:41]} {[%emt 00:00:25]} 43. e5 {[%clk 00:01:38]} {[%emt
00:00:06]} Nd5 {[%clk 00:01:43]} {[%emt 00:00:03]} 44. Be4 {[%clk 00:01:26]}
{[%emt 00:00:16]} a4 {[%clk 00:01:23]} {[%emt 00:00:26]} 45. Rd6 {[%clk
00:01:17]} {[%emt 00:00:14]} Qa5 {[%clk 00:01:28]} 46. Qxa5 {[%clk 00:01:09]}
{[%emt 00:00:13]} Rxa5 {[%clk 00:01:32]} 47. Rc5 {[%clk 00:01:08]} {[%emt
00:00:06]} Rxc5 {[%clk 00:01:12]} {[%emt 00:00:25]} 48. dxc5 {[%clk 00:01:11]}
{[%emt 00:00:02]} g5 {[%clk 00:00:30]} {[%emt 00:00:47]} 49. Ra6 {[%clk
00:00:39]} {[%emt 00:00:37]} Rc8 {[%clk 00:00:26]} {[%emt 00:00:09]} 50. Bxd5
{[%clk 00:00:19]} {[%emt 00:00:25]} exd5 {[%clk 00:00:29]} {[%emt 00:00:02]} 51.
c6 {[%clk 00:00:18]} {[%emt 00:00:06]} a3 {[%clk 00:00:22]} {[%emt 00:00:12]}
52. Kf1 {[%clk 00:00:16]} {[%emt 00:00:06]} a2 {[%clk 00:00:19]} {[%emt
00:00:09]} 53. Rxa2 {[%clk 00:00:20]} {[%emt 00:00:02]} Rxc6 {[%clk 00:00:23]}
{[%emt 00:00:01]} 54. Ra5 {[%clk 00:00:20]} {[%emt 00:00:04]} d4 {[%clk
00:00:21]} {[%emt 00:00:07]} 55. Rd5 {[%clk 00:00:23]} {[%emt 00:00:02]} Rc4
{[%clk 00:00:21]} {[%emt 00:00:06]} 56. Ke2 {[%clk 00:00:25]} {[%emt 00:00:02]}
Rc2+ {[%clk 00:00:23]} {[%emt 00:00:04]} 57. Kf3 {[%clk 00:00:28]} {[%emt
00:00:02]} Rd2 {[%clk 00:00:24]} {[%emt 00:00:04]} 58. g4 {[%clk 00:00:24]}
{[%emt 00:00:09]} Kg7 {[%clk 00:00:26]} {[%emt 00:00:03]} 59. Rd6 {[%clk
00:00:21]} {[%emt 00:00:07]} Kh7 {[%clk 00:00:24]} {[%emt 00:00:07]} 60. Rd7
{[%clk 00:00:09]} {[%emt 00:00:18]} Kg6 {[%clk 00:00:27]} {[%emt 00:00:02]}
1/2-1/2